fUST/lending_fUST_20241205
["ID","MTS","AMOUNT","RATE_DAILY","PERIOD"]
[344372486,1733386240591,-570.17758385,0.00023835,2]
[344372487,1733386240601,-5765.20081056,0.00023996,2]
[344372488,1733386240610,-155.00347968,0.00024037,2]
[344372489,1733386240619,-500.0,0.00024109,2]
[344372490,1733386240628,-500.0,0.00024109,2]
[344372491,1733386240638,-500.0,0.00024109,2]
[344372492,1733386240647,-2079.72,0.00024109,2]
[344372493,1733386240656,-664.43,0.00024109,2]
[344372494,1733386240665,-2241.92,0.00024109,2]
[344372495,1733386240674,-5765.20081056,0.00024248,2]
[344372496,1733386240683,-500.0,0.00024383,2]
[344372497,1733386240692,-500.0,0.00024383,2]
[344372498,1733386240701,-500.0,0.00024383,2]
[344372499,1733386240711,-2079.72,0.00024383,2]
[344372500,1733386240720,-664.43,0.00024383,2]
[344372501,1733386240730,-1633.40297235,0.00024383,2]
[344372502,1733386240745,-608.51702765,0.00024383,2]
[344372504,1733386240755,-655.4143953,0.00024385,2]
[344372505,1733386240764,-3985.4393335,0.000244,2]
[344372507,1733386240775,-256.92214411,0.000244,2]
[344372509,1733386240784,-275.78322756,0.00024443,2]
[344372510,1733386240794,-265.54028312,0.00024443,2]
[344372511,1733386240805,-500.0,0.00024443,2]
[344372512,1733386240815,-272.99753325,0.00024443,2]
[344372513,1733386240824,-180.54545373,0.00024443,2]
[344372514,1733386240834,-80054.5493188,0.00024444,8]
[344372515,1733386240843,-191.84715225,0.00024457,2]
[344372516,1733386240853,-216.78564424,0.00024557,2]
[344372517,1733386240863,-500.0,0.00024657,2]
[344372518,1733386240872,-500.0,0.00024657,2]
[344372519,1733386240881,-500.0,0.00024657,2]
[344372520,1733386240891,-2079.72,0.00024657,2]
[344372521,1733386240900,-664.43,0.00024657,2]
[344372522,1733386240909,-2241.92,0.00024657,2]
[344372523,1733386240919,-291.8375144,0.0002475,2]
[344372524,1733386240929,-33333.0,0.000249,2]
[344372525,1733386240938,-500.0,0.00024931,2]
[344372526,1733386240948,-500.0,0.00024931,2]
[344372527,1733386240957,-500.0,0.00024931,2]
[344372528,1733386240966,-2079.72,0.00024931,2]
[344372529,1733386240976,-664.43,0.00024931,2]
[344372530,1733386240985,-2241.92,0.00024931,2]
[344372531,1733386240995,-500.0,0.00024973,2]
[344372532,1733386241005,-401.92686314,0.00024973,2]
[344372533,1733386241017,-500.0,0.00024973,2]
[344372534,1733386241026,-150.01,0.00024999,2]
[344372535,1733386241036,-1580.71645265,0.00024999,2]
[344372536,1733386241048,-127848.93219517,0.00025,2]
[344372537,1733386241058,-7185.06952303,0.00025,2]
[344372538,1733386241067,-8983.87,0.00025,2]
[344372539,1733386241077,-21516.22040797,0.00025,2]
[344372540,1733386241088,-151.0,0.00025,7]
[344372541,1733386241097,-267.159832,0.00025,7]
[344372542,1733386241106,-151.0,0.00025,7]
[344372543,1733386241115,-151.0,0.00025,7]
[344372544,1733386241125,-151.0,0.00025,7]
[344372545,1733386241135,-151.0,0.00025,7]
[344372546,1733386241144,-151.0,0.00025,7]
[344372547,1733386241154,-231.807626,0.00025,7]
[344372548,1733386241163,-231.807626,0.00025,7]
[344372549,1733386241173,-244.84,0.00025,7]
[344372550,1733386241183,-152.543421,0.00025,7]
[344372551,1733386241192,-151.0,0.00025,7]
[344372552,1733386241201,-151.981825,0.00025,7]
[344372553,1733386241210,-155.777044,0.00025,7]
[344372554,1733386241219,-151.0,0.00025,7]
[344372555,1733386241228,-151.0,0.00025,7]
[344372556,1733386241237,-158.519531,0.00025,7]
[344372557,1733386241247,-151.0,0.00025,7]
[344372558,1733386241257,-158.519531,0.00025,7]
[344372559,1733386241266,-151.0,0.00025,7]
[344372560,1733386241275,-151.0,0.00025,7]
[344372561,1733386241285,-154.344214,0.00025,7]
[344372562,1733386241295,-151.0,0.00025,7]
[344372563,1733386241306,-151.0,0.00025,7]
[344372564,1733386241315,-6232.58053129,0.00025,2]
[344372584,1733386243804,-3949.659,0.00024262,2]
[344372585,1733386243816,-500.0,0.00024973,2]
[344372586,1733386243825,-5380.03704819,0.00025,2]
[344372603,1733386246722,-150.01,0.00024999,2]
[344372604,1733386246731,-485.25117737,0.00024999,2]
[344372605,1733386246777,-832.01253318,0.00024999,2]
[344372606,1733386246787,-10754.74622684,0.00025,2]
[344372608,1733386475078,158.768436,0.00013973,2]
[344372612,1733386749585,2221.54386018,0.00026,120]
[344372637,1733387037078,160.21934,0.00013973,2]
[344372694,1733387433560,-313.31020472,0.00020347,2]
[344372695,1733387433570,-193.17499,0.00020377,2]
[344372696,1733387433581,-158.768436,0.00020447,2]
[344372697,1733387433591,-300.0,0.00020515,2]
[344372698,1733387433600,-300.0,0.00020515,2]
[344372699,1733387433610,-9845.9963,0.00020516,2]
[344372700,1733387433620,-170.1247787,0.00020813,2]
[344372701,1733387433630,-4100.12529058,0.00020865,2]
[344372702,1733387433642,-6179.55410428,0.00020865,2]
[344372703,1733387433653,-14620.32060514,0.00020865,2]
[344372704,1733387433663,-250.0,0.00020876,2]
[344372705,1733387433674,-735.67939484,0.00021717,2]
[344372736,1733387438041,-1558.15387952,0.00021717,2]
[344372737,1733387438051,-174.796865,0.00021759,2]
[344372738,1733387438061,-257.87627051,0.00021817,2]
[344372739,1733387438070,-354.1,0.00021907,3]
[344372740,1733387438079,-177.05,0.00021907,3]
[344372741,1733387438089,-531.15,0.00021907,3]
[344372742,1733387438099,-417.92361315,0.00021916,2]
[344372743,1733387438109,-328.94937182,0.00021916,2]
[344372774,1733387442972,-171.05062818,0.00021916,2]
[344372775,1733387442982,-408.51625165,0.00021916,2]
[344372776,1733387442996,-470.05630774,0.00021916,2]
[344372777,1733387443005,-451.90277439,0.00021916,2]
[344372778,1733387443015,-193.04825929,0.00021916,2]
[344372779,1733387443024,-185.87819819,0.00021916,2]
[344372780,1733387443033,-191.09827327,0.00021916,2]
[344372781,1733387443042,-476.38181761,0.00021916,2]
[344372782,1733387443052,-200.24159334,0.00021916,2]
[344372783,1733387443061,-502.33100914,0.00021917,2]
[344372784,1733387443071,-504.87636706,0.00021917,2]
[344372785,1733387443080,-500.0,0.00021917,2]
[344372786,1733387443089,-500.0,0.00021917,2]
[344372787,1733387443099,-500.0,0.00021917,2]
[344372788,1733387443109,-500.0,0.00021917,2]
[344372789,1733387443118,-500.0,0.00021917,2]
[344372790,1733387443128,-504.62967855,0.00021917,2]
[344372791,1733387443138,-500.0,0.00021917,2]
[344372792,1733387443148,-240.32287367,0.00021917,2]
[344372793,1733387443158,-500.0,0.00021917,2]
[344372794,1733387443168,-590.23221157,0.00021917,2]
[344372795,1733387443179,-248.10540249,0.00021917,2]
[344372796,1733387443211,-308.20625575,0.00021917,2]
[344372797,1733387443228,-311.16110011,0.00021917,2]
[344372798,1733387443242,-502.4140288,0.00021917,2]
[344372799,1733387443253,-500.0,0.00021917,2]
[344372800,1733387443263,-500.0,0.00021917,2]
[344372801,1733387443274,-500.0,0.00021917,2]
[344372802,1733387443283,-500.0,0.00021917,2]
[344372803,1733387443293,-500.0,0.00021917,2]
[344372804,1733387443303,-225.69074369,0.00021917,2]
[344372805,1733387443314,-500.0,0.00021917,2]
[344372806,1733387443324,-203.47607246,0.00021917,2]
[344372807,1733387443333,-281.37987722,0.00021917,2]
[344372808,1733387443343,-500.0,0.00021917,2]
[344372809,1733387443353,-500.0,0.00021917,2]
[344372810,1733387443366,-500.0,0.00021917,2]
[344372811,1733387443376,-500.0,0.00021917,2]
[344372812,1733387443386,-500.0,0.00021917,2]
[344372813,1733387443398,-500.0,0.00021917,2]
[344372814,1733387443408,-500.0,0.00021917,2]
[344372815,1733387443418,-472.32642628,0.00021917,2]
[344372816,1733387443427,-560.93369922,0.00021917,2]
[344372817,1733387443438,-200.0,0.00021917,2]
[344372818,1733387443539,-490.78994137,0.00021917,2]
[344372819,1733387443550,-500.0,0.00021917,2]
[344372820,1733387443560,-1000.0,0.00021917,10]
[344372821,1733387443570,-522.60911208,0.00021917,2]
[344372822,1733387443580,-500.0,0.00021917,2]
[344372823,1733387443590,-500.0,0.00021917,2]
[344372824,1733387443600,-503.91064745,0.00021917,2]
[344372825,1733387443609,-200.08113558,0.00021917,2]
[344372826,1733387443619,-500.0,0.00021917,2]
[344372827,1733387443629,-506.32356107,0.00021917,2]
[344372828,1733387443638,-500.0,0.00021917,2]
[344372829,1733387443647,-500.0,0.00021917,2]
[344372830,1733387443658,-500.0,0.00021917,2]
[344372831,1733387443667,-500.0,0.00021917,2]
[344372832,1733387443676,-500.0,0.00021917,2]
[344372833,1733387443686,-500.0,0.00021917,2]
[344372834,1733387443695,-499.94055355,0.00021917,2]
[344372835,1733387443706,-500.0,0.00021917,2]
[344372836,1733387443716,-500.0,0.00021917,2]
[344372837,1733387443726,-500.0,0.00021917,2]
[344372838,1733387443737,-507.23237359,0.00021917,2]
[344372839,1733387443747,-507.99954732,0.00021917,2]
[344372840,1733387443755,-511.9712505,0.00021917,2]
[344372841,1733387443765,-500.0,0.00021917,2]
[344372842,1733387443774,-500.0,0.00021917,2]
[344372843,1733387443783,-504.06881319,0.00021917,2]
[344372844,1733387443793,-500.0,0.00021917,2]
[344372845,1733387443802,-505.09808715,0.00021917,2]
[344372846,1733387443813,-567.0370888,0.00021917,2]
[344372847,1733387443823,-506.17065024,0.00021917,2]
[344372848,1733387443832,-500.0,0.00021917,2]
[344372849,1733387443841,-500.0,0.00021917,2]
[344372850,1733387443851,-506.82989933,0.00021917,2]
[344372851,1733387443861,-505.32572733,0.00021917,2]
[344372852,1733387443870,-500.0,0.00021917,2]
[344372853,1733387443879,-500.0,0.00021917,2]
[344372854,1733387443888,-500.0,0.00021917,2]
[344372855,1733387443897,-500.0,0.00021917,2]
[344372856,1733387443906,-500.99169595,0.00021917,2]
[344372857,1733387443915,-500.0,0.00021917,2]
[344372858,1733387443924,-505.01663218,0.00021917,2]
[344372859,1733387443934,-500.0,0.00021917,2]
[344372860,1733387443943,-500.0,0.00021917,2]
[344372861,1733387443953,-500.0,0.00021917,2]
[344372862,1733387443963,-500.0,0.00021917,2]
[344372863,1733387443972,-500.0,0.00021917,2]
[344372864,1733387443982,-500.0,0.00021917,2]
[344372865,1733387443994,-500.0,0.00021917,2]
[344372866,1733387444003,-503.01473835,0.00021917,2]
[344372867,1733387444013,-500.0,0.00021917,2]
[344372868,1733387444023,-487.11671744,0.00021917,2]
[344372869,1733387444032,-502.73283702,0.00021917,2]
[344372870,1733387444042,-500.0,0.00021917,2]
[344372871,1733387444051,-500.0,0.00021917,2]
[344372872,1733387444060,-500.0,0.00021917,2]
[344372873,1733387444069,-632.38758937,0.00021917,2]
[344372874,1733387444081,-637.03907453,0.00021917,2]
[344372875,1733387444091,-500.0,0.00021917,2]
[344372876,1733387444100,-500.0,0.00021917,2]
[344372877,1733387444111,-500.0,0.00021917,2]
[344372878,1733387444121,-500.0,0.00021917,2]
[344372879,1733387444135,-521.31206508,0.00021917,2]
[344372880,1733387444146,-500.0,0.00021917,2]
[344372881,1733387444158,-500.0,0.00021917,2]
[344372882,1733387444169,-500.0,0.00021917,2]
[344372883,1733387444182,-512.244189,0.00021917,2]
[344372884,1733387444194,-508.49787315,0.00021917,2]
[344372885,1733387444206,-508.60543267,0.00021917,2]
[344372886,1733387444219,-500.0,0.00021917,2]
[344372887,1733387444231,-500.0,0.00021917,2]
[344372888,1733387444251,-500.0,0.00021917,2]
[344372889,1733387444264,-500.0,0.00021917,2]
[344372890,1733387444277,-168.07127385,0.00021917,2]
[344372891,1733387444293,-295.37059037,0.00021917,2]
[344372921,1733387679938,191.095768,0.00013973,2]
[344372937,1733387946421,371.86062589,0.00027,30]
[344372955,1733388174229,300.0,0.00027,30]
[344372956,1733388312267,181.540979,0.00013973,2]
[344373012,1733388632022,-1913.8538038,0.00019935,2]
[344373014,1733388632032,-599.6461559,0.00020212,2]
[344373016,1733388632041,-250.0,0.00020213,2]
[344373018,1733388632050,-2709.3878094,0.00020247,2]
[344373020,1733388632059,-300.0,0.00020338,2]
[344373022,1733388632070,-300.0,0.00020338,2]
[344373024,1733388632080,-4188.1122309,0.00020339,2]
[344373026,1733388632091,-5511.07701601,0.00020339,2]
[344373028,1733388632107,-5092.90473763,0.00020339,2]
[344373115,1733388639133,-7836.4,0.00020339,2]
[344373148,1733388643040,-2271.50601546,0.00020339,2]
[344373149,1733388643050,-195.42615953,0.00020347,2]
[344373151,1733388643060,-389.24036581,0.00020347,2]
[344373153,1733388643071,-181.540979,0.00020447,2]
[344373154,1733388643082,-149.70510514,0.00020574,2]
[344373171,1733388915890,166.718909,0.00013973,2]
[344373204,1733389553723,171.722825,0.00013973,2]
[344373238,1733389832266,-180.911091,0.00019385,2]
[344373239,1733389832278,-643.24635923,0.00019497,2]
[344373240,1733389832288,-500.0,0.00019537,2]
[344373241,1733389832298,-300.0,0.00019999,2]
[344373242,1733389832308,-300.0,0.00019999,2]
[344373243,1733389832317,-2191.24250977,0.0002,2]
[344373258,1733389838457,-17254.44347744,0.0002,2]
[344373292,1733390062695,-5454.31401279,0.0002,2]
[344373293,1733390062721,-250.0,0.00020262,2]
[344373294,1733390062748,-1835.20753665,0.000203,2]
[344373295,1733390062774,-171.722825,0.00020447,2]
[344373296,1733390062800,-400.0,0.00020457,2]
[344373297,1733390062826,-500.0,0.00020565,2]
[344373298,1733390062852,-400.0,0.00021214,2]
[344373299,1733390062879,-500.0,0.00021647,2]
[344373300,1733390062904,-179.366684,0.00021688,2]
[344373301,1733390062930,-300.0,0.00021713,2]
[344373302,1733390062957,-1206.21063237,0.00021716,2]
[344373303,1733390062985,-300.0,0.00021805,2]
[344373304,1733390063012,-157.44,0.00021806,2]
[344373305,1733390063039,-500.0,0.00021816,2]
[344373306,1733390063067,-500.0,0.00021816,2]
[344373307,1733390063099,-163.87832118,0.00021816,2]
[344373308,1733390063132,-500.0,0.00021816,2]
[344373309,1733390063163,-501.15188269,0.00021816,2]
[344373310,1733390063194,-500.0,0.00021816,2]
[344373311,1733390063224,-500.0,0.00021816,2]
[344373312,1733390063254,-500.0,0.00021816,2]
[344373313,1733390063282,-500.0,0.00021816,2]
[344373314,1733390063310,-500.0,0.00021816,2]
[344373315,1733390063338,-500.0,0.00021816,2]
[344373316,1733390063364,-500.0,0.00021816,2]
[344373317,1733390063393,-500.0,0.00021816,2]
[344373318,1733390063419,-648.35700839,0.00021816,2]
[344373319,1733390063446,-500.0,0.00021816,2]
[344373320,1733390063473,-500.0,0.00021816,2]
[344373321,1733390063503,-500.0,0.00021816,2]
[344373322,1733390063531,-195.26491824,0.00021816,2]
[344373323,1733390063558,-500.0,0.00021816,2]
[344373324,1733390063586,-500.0,0.00021816,2]
[344373325,1733390063612,-500.0,0.00021816,2]
[344373326,1733390063640,-581.87183761,0.00021816,2]
[344373327,1733390063668,-500.0,0.00021816,2]
[344373328,1733390063695,-500.0,0.00021816,2]
[344373329,1733390063721,-500.0,0.00021816,2]
[344373330,1733390063752,-500.0,0.00021816,2]
[344373331,1733390063779,-500.0,0.00021816,2]
[344373332,1733390063808,-500.0,0.00021816,2]
[344373333,1733390063835,-485.48252555,0.00021816,2]
[344373334,1733390063862,-500.0,0.00021816,2]
[344373335,1733390063889,-500.0,0.00021816,2]
[344373336,1733390063918,-500.0,0.00021816,2]
[344373337,1733390063945,-500.0,0.00021816,2]
[344373338,1733390063974,-500.0,0.00021816,2]
[344373339,1733390064082,-500.0,0.00021816,2]
[344373340,1733390064114,-500.0,0.00021816,2]
[344373341,1733390064144,-500.0,0.00021816,2]
[344373342,1733390064172,-500.0,0.00021816,2]
[344373343,1733390064200,-500.0,0.00021816,2]
[344373344,1733390064226,-500.0,0.00021816,2]
[344373345,1733390064255,-500.0,0.00021816,2]
[344373346,1733390064283,-500.0,0.00021816,2]
[344373347,1733390064312,-500.0,0.00021816,2]
[344373348,1733390064339,-500.0,0.00021816,2]
[344373349,1733390064365,-500.0,0.00021816,2]
[344373350,1733390064393,-500.0,0.00021816,2]
[344373351,1733390064420,-500.0,0.00021816,2]
[344373352,1733390064447,-500.0,0.00021816,2]
[344373353,1733390064473,-500.0,0.00021816,2]
[344373354,1733390064501,-500.0,0.00021816,2]
[344373355,1733390064528,-500.0,0.00021816,2]
[344373356,1733390064555,-500.0,0.00021816,2]
[344373357,1733390064582,-500.0,0.00021816,2]
[344373358,1733390064609,-245.74585515,0.00021816,2]
[344373359,1733390064636,-500.0,0.00021816,2]
[344373360,1733390064663,-500.0,0.00021816,2]
[344373361,1733390064691,-500.0,0.00021816,2]
[344373362,1733390064720,-500.0,0.00021816,2]
[344373363,1733390064749,-375.80036504,0.00021816,2]
[344373364,1733390064777,-500.0,0.00021816,2]
[344373365,1733390064804,-500.0,0.00021816,2]
[344373366,1733390064832,-504.81893432,0.00021816,2]
[344373367,1733390064859,-500.0,0.00021816,2]
[344373368,1733390064888,-500.0,0.00021816,2]
[344373369,1733390064917,-500.0,0.00021816,2]
[344373370,1733390064946,-500.0,0.00021816,2]
[344373371,1733390064974,-151.0,0.00021816,2]
[344373372,1733390065004,-151.0,0.00021816,2]
[344373373,1733390065032,-6827.08983058,0.00021817,7]
[344373374,1733390065061,-22743.28640457,0.00021817,3]
[344373375,1733390065099,-15056.84619612,0.00021817,2]
[344373376,1733390065127,-1195.96966326,0.00021817,2]
[344373377,1733390065155,-151.0,0.000219,4]
[344373378,1733390065184,-151.0,0.000219,3]
[344373379,1733390065210,-184.62432095,0.00021916,2]
[344373380,1733390065238,-500.0,0.00021916,2]
[344373381,1733390065265,-198.27472475,0.00021916,2]
[344373382,1733390065293,-194.46541961,0.00021916,2]
[344373383,1733390065320,-265.29872499,0.00021916,2]
[344373384,1733390065346,-150.01,0.00021916,2]
[344373385,1733390065373,-4255.30038178,0.00021916,2]
[344373386,1733390065400,-500.0,0.00021916,2]
[344373387,1733390065428,-151.0,0.00021917,2]
[344373388,1733390065455,-151.0,0.00021917,2]
[344373389,1733390065484,-154.327259,0.00021917,2]
[344373390,1733390065584,-154.327259,0.00021917,2]
[344373391,1733390065612,-154.327259,0.00021917,2]
[344373392,1733390065639,-154.327259,0.00021917,2]
[344373393,1733390065666,-151.0,0.00021917,2]
[344373394,1733390065695,-218.10301,0.00021917,2]
[344373395,1733390065722,-500.0,0.00021917,2]
[344373396,1733390065752,-502.76962581,0.00021917,2]
[344373397,1733390065779,-500.0,0.00021917,2]
[344373398,1733390065807,-500.0,0.00021917,2]
[344373399,1733390065835,-500.0,0.00021917,2]
[344373400,1733390065862,-548.41391861,0.00021917,2]
[344373401,1733390065889,-500.0,0.00021917,2]
[344373402,1733390065915,-502.22702147,0.00021917,2]
[344373403,1733390065942,-569.57065066,0.00021917,2]
[344373404,1733390065968,-151.0,0.00021917,2]
[344373405,1733390065997,-151.0,0.00021917,2]
[344373406,1733390066023,-151.0,0.00021917,2]
[344373407,1733390066050,-155.127811,0.00021917,2]
[344373408,1733390066079,-261.178909,0.00021917,2]
[344373409,1733390066110,-261.178909,0.00021917,2]
[344373410,1733390066149,-261.178909,0.00021917,2]
[344373411,1733390066184,-261.178909,0.00021917,2]
[344373412,1733390066214,-261.178909,0.00021917,2]
[344373413,1733390066245,-261.178909,0.00021917,2]
[344373414,1733390066273,-261.178909,0.00021917,2]
[344373415,1733390066301,-261.178909,0.00021917,2]
[344373416,1733390066331,-261.178909,0.00021917,2]
[344373417,1733390066360,-261.178909,0.00021917,2]
[344373418,1733390066389,-261.178909,0.00021917,2]
[344373419,1733390066416,-261.178909,0.00021917,2]
[344373420,1733390066443,-261.178909,0.00021917,2]
[344373421,1733390066471,-261.178909,0.00021917,2]
[344373422,1733390066498,-261.178909,0.00021917,2]
[344373423,1733390066525,-261.178909,0.00021917,2]
[344373424,1733390066551,-509.33619401,0.00021917,2]
[344373425,1733390066578,-509.20707211,0.00021917,2]
[344373426,1733390066605,-503.74637403,0.00021917,2]
[344373427,1733390066632,-500.0,0.00021917,2]
[344373428,1733390066660,-500.0,0.00021917,2]
[344373429,1733390066687,-500.0,0.00021917,2]
[344373430,1733390066714,-500.0,0.00021917,2]
[344373431,1733390066742,-500.0,0.00021917,2]
[344373432,1733390066769,-500.0,0.00021917,2]
[344373433,1733390066796,-500.0,0.00021917,2]
[344373434,1733390066823,-517.763482,0.00021917,2]
[344373435,1733390066850,-500.0,0.00021917,2]
[344373436,1733390066879,-500.0,0.00021917,2]
[344373437,1733390066907,-506.76153007,0.00021917,2]
[344373438,1733390066936,-501.94656714,0.00021917,2]
[344373439,1733390067058,-500.0,0.00021917,2]
[344373440,1733390067088,-520.18232579,0.00021917,2]
[344373441,1733390067116,-500.0,0.00021917,2]
[344373442,1733390067145,-503.26010965,0.00021917,2]
[344373443,1733390067176,-500.0,0.00021917,2]
[344373444,1733390067204,-500.0,0.00021917,2]
[344373445,1733390067232,-160.23731872,0.00021917,2]
[344373446,1733390067262,-504.43901214,0.00021917,2]
[344373447,1733390067289,-500.0,0.00021917,2]
[344373448,1733390067317,-500.0,0.00021917,2]
[344373449,1733390067344,-221.568273,0.00021917,2]
[344373450,1733390067370,-502.27067654,0.00021917,2]
[344373451,1733390067397,-500.0,0.00021917,2]
[344373452,1733390067425,-500.0,0.00021917,2]
[344373453,1733390067452,-500.0,0.00021917,2]
[344373454,1733390067479,-525.90959262,0.00021917,2]
[344373455,1733390067508,-219.81155578,0.00021917,2]
[344373456,1733390067535,-508.33032414,0.00021917,2]
[344373457,1733390067562,-354.18363802,0.00021917,2]
[344373458,1733390067589,-500.0,0.00021917,2]
[344373459,1733390067616,-151.0,0.00021917,2]
[344373460,1733390067643,-151.0,0.00021917,2]
[344373461,1733390067670,-151.0,0.00021917,2]
[344373462,1733390067697,-151.0,0.00021917,2]
[344373463,1733390067724,-151.0,0.00021917,2]
[344373464,1733390067758,-500.0,0.00021917,2]
[344373465,1733390067784,-151.0,0.00021917,2]
[344373466,1733390067811,-500.0,0.00021917,2]
[344373467,1733390067838,-151.0,0.00021917,2]
[344373468,1733390067864,-151.0,0.00021917,2]
[344373469,1733390067892,-500.0,0.00021917,2]
[344373470,1733390067920,-151.0,0.00021917,2]
[344373471,1733390067947,-151.0,0.00021917,2]
[344373472,1733390067974,-151.0,0.00021917,2]
[344373473,1733390068004,-151.0,0.00021917,2]
[344373474,1733390068032,-151.0,0.00021917,2]
[344373475,1733390068059,-151.0,0.00021917,2]
[344373476,1733390068088,-264.964682,0.00021917,2]
[344373477,1733390068119,-500.0,0.00021917,2]
[344373478,1733390068147,-182.29746,0.00021917,2]
[344373479,1733390068176,-182.29746,0.00021917,2]
[344373480,1733390068204,-182.29746,0.00021917,2]
[344373481,1733390068234,-182.29746,0.00021917,2]
[344373482,1733390068262,-182.29746,0.00021917,2]
[344373483,1733390068290,-500.0,0.00021917,2]
[344373484,1733390068317,-500.0,0.00021917,2]
[344373485,1733390068345,-182.29746,0.00021917,2]
[344373486,1733390068441,-182.29746,0.00021917,2]
[344373487,1733390068469,-182.29746,0.00021917,2]
[344373488,1733390068499,-182.29746,0.00021917,2]
[344373489,1733390068525,-182.29746,0.00021917,2]
[344373490,1733390068554,-182.29746,0.00021917,2]
[344373491,1733390068581,-182.29746,0.00021917,2]
[344373492,1733390068609,-182.29746,0.00021917,2]
[344373493,1733390068637,-182.29746,0.00021917,2]
[344373494,1733390068665,-182.29746,0.00021917,2]
[344373495,1733390068693,-182.29746,0.00021917,2]
[344373496,1733390068720,-387.54793041,0.00021917,2]
[344373497,1733390068749,-500.0,0.00021917,2]
[344373498,1733390068775,-504.61534738,0.00021917,2]
[344373499,1733390068802,-507.47879931,0.00021917,2]
[344373500,1733390068830,-521.22714002,0.00021917,2]
[344373501,1733390068857,-500.0,0.00021917,2]
[344373502,1733390068884,-500.0,0.00021917,2]
[344373503,1733390068910,-500.0,0.00021917,2]
[344373504,1733390068937,-500.0,0.00021917,2]
[344373505,1733390068963,-151.0,0.00021917,2]
[344373506,1733390068990,-218.550777,0.00021917,2]
[344373507,1733390069016,-643.35736293,0.00021917,2]
[344373508,1733390069043,-500.0,0.00021917,2]
[344373509,1733390069069,-500.0,0.00021917,2]
[344373510,1733390069100,-500.0,0.00021917,2]
[344373511,1733390069128,-500.0,0.00021917,2]
[344373512,1733390069155,-500.0,0.00021917,2]
[344373513,1733390069182,-1002.98586278,0.00021917,5]
[344373514,1733390069209,-502.53524572,0.00021917,2]
[344373515,1733390069236,-500.0,0.00021917,2]
[344373516,1733390069262,-503.07751323,0.00021917,2]
[344373517,1733390069289,-1000.0,0.00021917,10]
[344373518,1733390069315,-299.3331692,0.00021917,2]
[344373519,1733390069342,-502.74468778,0.00021917,2]
[344373520,1733390069368,-200.0,0.00021917,2]
[344373521,1733390069393,-506.91619885,0.00021917,2]
[344373522,1733390069418,-500.0,0.00021917,2]
[344373523,1733390069445,-500.0,0.00021917,2]
[344373524,1733390069470,-500.0,0.00021917,2]
[344373525,1733390069498,-500.0,0.00021917,2]
[344373526,1733390069525,-500.0,0.00021917,2]
[344373527,1733390069551,-500.0,0.00021917,2]
[344373528,1733390069577,-509.75824692,0.00021917,2]
[344373529,1733390069602,-500.0,0.00021917,2]
[344373530,1733390069628,-500.0,0.00021917,2]
[344373531,1733390069653,-500.0,0.00021917,2]
[344373532,1733390069748,-503.7877338,0.00021917,2]
[344373533,1733390069775,-500.0,0.00021917,2]
[344373534,1733390069802,-500.0,0.00021917,2]
[344373535,1733390069828,-500.0,0.00021917,2]
[344373536,1733390069853,-500.0,0.00021917,2]
[344373537,1733390069880,-500.0,0.00021917,2]
[344373538,1733390069906,-500.0,0.00021917,2]
[344373539,1733390069934,-500.0,0.00021917,2]